fUSD/lending_fUSD_20241030
["ID","MTS","AMOUNT","RATE_DAILY","PERIOD"]
[341025889,1730281839038,-500.0,0.00034896,5]
[341025890,1730281839048,-500.0,0.00034896,5]
[341025891,1730281839057,-500.0,0.00034896,5]
[341025892,1730281839066,-1387.62,0.00034896,5]
[341025893,1730281839076,-150.0,0.00034896,5]
[341025894,1730281839086,-500.0,0.00034896,5]
[341025895,1730281839095,-500.0,0.00034896,5]
[341025896,1730281839105,-500.0,0.00034896,5]
[341025897,1730281839116,-500.0,0.00034896,5]
[341025898,1730281839127,-500.0,0.00034896,5]
[341025899,1730281839137,-500.0,0.00034896,5]
[341025900,1730281839147,-500.0,0.00034896,5]
[341025901,1730281839158,-667.88,0.00034896,5]
[341025902,1730281839167,-561.25323012,0.00034896,5]
[341025903,1730281839178,-493.81,0.00034896,5]
[341025904,1730281839188,-549.31514078,0.00034896,5]
[341025905,1730281839198,-500.0,0.00034896,5]
[341025906,1730281839210,-500.0,0.00034896,5]
[341025907,1730281839220,-500.0,0.00034896,5]
[341025908,1730281839229,-516.12060049,0.00034896,5]
[341025909,1730281839238,-500.0,0.00034896,5]
[341025910,1730281839247,-520.15257611,0.00034896,5]
[341025911,1730281839257,-500.0,0.00034896,5]
[341025912,1730281839267,-500.0,0.00034896,5]
[341025913,1730281839276,-274.70378711,0.00034896,5]
[341025914,1730281839286,-500.0,0.00034896,5]
[341025915,1730281839295,-500.0,0.00034896,5]
[341025916,1730281839305,-500.0,0.00034896,5]
[341025917,1730281839316,-500.0,0.00034896,5]
[341025918,1730281839327,-500.0,0.00034896,5]
[341025919,1730281839336,-500.0,0.00034896,5]
[341025920,1730281839346,-500.0,0.00034896,5]
[341025921,1730281839357,-500.0,0.00034896,5]
[341025922,1730281839366,-1104.09,0.00034896,5]
[341025923,1730281839376,-500.0,0.00034896,5]
[341025924,1730281839385,-500.0,0.00034896,5]
[341025925,1730281839394,-500.0,0.00034896,5]
[341025926,1730281839403,-500.0,0.00034896,5]
[341025927,1730281839413,-500.0,0.00034896,5]
[341025928,1730281839422,-500.0,0.00034896,5]
[341025929,1730281839431,-521.5788083,0.00034896,5]
[341025930,1730281839440,-426.08987531,0.00034896,5]
[341025931,1730281839449,-800.08,0.00034896,5]
[341025932,1730281839457,-500.0,0.00034896,5]
[341025933,1730281839466,-532.88,0.00034896,5]
[341025934,1730281839475,-431.95238448,0.00034896,5]
[341025935,1730281839492,-68.04761552,0.00034896,5]
[341025936,1730281839500,-761.91,0.00034896,5]
[341025937,1730281839510,-500.0,0.00034896,5]
[341025938,1730281839519,-763.43,0.00034896,5]
[341025939,1730281839528,-588.95658447,0.00034896,5]
[341025950,1730281840142,-33.49341553,0.00034896,5]
[341025951,1730281840152,-500.0,0.00034896,5]
[341025952,1730281840162,-592.43,0.00034896,5]
[341025953,1730281840171,-500.0,0.00034896,5]
[341025954,1730281840180,-152.01032647,0.00034896,5]
[341025958,1730281842862,-581.41,0.00034796,5]
[341025959,1730281842872,-345.64061362,0.00034896,5]
[341025960,1730281842882,-500.0,0.00034896,5]
[341025961,1730281842891,-236.05307952,0.00034896,5]
[341025962,1730281843022,-500.0,0.00034873,5]
[341025963,1730281843033,-1577.96692048,0.00034896,5]
[341025964,1730281843043,-500.0,0.00034896,5]
[341025965,1730281843052,-500.0,0.00034896,5]
[341025966,1730281843061,-500.0,0.00034896,5]
[341025967,1730281843071,-970.53,0.00034896,5]
[341025968,1730281843081,-1746.17,0.00034896,5]
[341025969,1730281843090,-200.66020377,0.00034896,5]
[341025970,1730281843122,-299.33979623,0.00034896,5]
[341025971,1730281843132,-500.0,0.00034896,5]
[341025972,1730281843141,-665.63,0.00034896,5]
[341025973,1730281843151,-500.0,0.00034896,5]
[341025974,1730281843161,-500.0,0.00034896,5]
[341025975,1730281843170,-1255.53,0.00034896,5]
[341025976,1730281843181,-1361.08,0.00034896,5]
[341025977,1730281843190,-536.01208674,0.00034896,5]
[341025978,1730281843199,-500.0,0.00034896,5]
[341025979,1730281843209,-500.0,0.00034896,5]
[341025980,1730281843218,-500.0,0.00034896,5]
[341025981,1730281843227,-500.0,0.00034896,5]
[341025982,1730281843237,-5141.47,0.00034896,5]
[341025983,1730281843247,-500.0,0.00034896,5]
[341025984,1730281843256,-500.0,0.00034896,5]
[341025985,1730281843266,-650.01,0.00034896,5]
[341025986,1730281843276,-170.9905647,0.00034896,5]
[341025987,1730281843290,-500.0,0.00034896,5]
[341025988,1730281843300,-917.69,0.00034896,5]
[341025989,1730281843309,-500.0,0.00034896,5]
[341025990,1730281843318,-500.0,0.00034896,5]
[341025991,1730281843328,-500.0,0.00034896,5]
[341025992,1730281843338,-500.0,0.00034896,5]
[341025993,1730281843347,-500.0,0.00034896,5]
[341025994,1730281843356,-500.0,0.00034896,5]
[341025995,1730281843365,-500.0,0.00034896,5]
[341025996,1730281843374,-2000.0,0.00034896,120]
[341025997,1730281843383,-500.0,0.00034896,5]
[341025998,1730281843392,-512.18492153,0.00034896,5]
[341025999,1730281843402,-500.0,0.00034896,5]
[341026000,1730281843411,-500.0,0.00034896,5]
[341026001,1730281843420,-500.0,0.00034896,5]
[341026002,1730281843430,-500.0,0.00034896,5]
[341026003,1730281843439,-1439.93,0.00034896,5]
[341026004,1730281843448,-500.0,0.00034896,5]
[341026005,1730281843458,-500.0,0.00034896,5]
[341026006,1730281843467,-500.0,0.00034896,5]
[341026007,1730281843477,-500.0,0.00034896,5]
[341026009,1730281843487,-2157.95,0.00034896,5]
[341026011,1730281843496,-997.98,0.00034896,5]
[341026012,1730281843506,-500.0,0.00034896,5]
[341026013,1730281843515,-500.0,0.00034896,5]
[341026014,1730281843525,-500.0,0.00034896,5]
[341026015,1730281843535,-500.0,0.00034896,5]
[341026016,1730281843544,-664.82,0.00034896,5]
[341026017,1730281843554,-562.17,0.00034896,5]
[341026018,1730281843563,-500.0,0.00034896,5]
[341026019,1730281843573,-543.14175279,0.00034896,5]
[341026020,1730281843582,-228.375392,0.00034896,7]
[341026021,1730281843591,-500.0,0.00034896,5]
[341026022,1730281843601,-500.0,0.00034896,5]
[341026023,1730281843719,-500.0,0.00034896,5]
[341026024,1730281843729,-1184.15,0.00034896,5]
[341026025,1730281843739,-758.16,0.00034896,5]
[341026026,1730281843748,-500.0,0.00034896,5]
[341026027,1730281843757,-883.91,0.00034896,5]
[341026028,1730281843767,-500.0,0.00034896,5]
[341026029,1730281843776,-1250.33,0.00034896,5]
[341026030,1730281843785,-151.0,0.00034896,7]
[341026031,1730281843794,-182.95393399,0.00034896,5]
[341026032,1730281843803,-500.0,0.00034896,5]
[341026033,1730281843813,-500.0,0.00034896,5]
[341026034,1730281843822,-500.0,0.00034896,5]
[341026035,1730281843831,-500.0,0.00034896,5]
[341026036,1730281843840,-500.0,0.00034896,5]
[341026037,1730281843850,-500.0,0.00034896,5]
[341026038,1730281843860,-1792.3,0.00034896,5]
[341026039,1730281843870,-951.5,0.00034896,5]
[341026040,1730281843879,-500.0,0.00034896,5]
[341026041,1730281843889,-500.0,0.00034896,5]
[341026042,1730281843899,-500.0,0.00034896,5]
[341026043,1730281843909,-749.9,0.00034896,5]
[341026044,1730281843919,-200.0,0.00034896,5]
[341026045,1730281843928,-500.0,0.00034896,5]
[341026046,1730281843937,-500.0,0.00034896,5]
[341026047,1730281843946,-500.0,0.00034896,5]
[341026048,1730281843956,-601.96,0.00034896,5]
[341026049,1730281843965,-559.87,0.00034896,5]
[341026050,1730281843974,-500.0,0.00034896,5]
[341026051,1730281843983,-500.0,0.00034896,5]
[341026052,1730281843993,-500.0,0.00034896,5]
[341026053,1730281844002,-526.13,0.00034896,5]
[341026054,1730281844011,-674.02,0.00034896,5]
[341026055,1730281844021,-1753.0,0.00034896,5]
[341026056,1730281844030,-500.0,0.00034896,5]
[341026057,1730281844042,-1564.64,0.00034896,5]
[341026058,1730281844051,-500.0,0.00034896,5]
[341026059,1730281844061,-1564.64,0.00034896,5]
[341026060,1730281844070,-423.34756202,0.00034896,5]
[341026061,1730281844080,-942.99,0.00034896,5]
[341026062,1730281844089,-500.0,0.00034896,5]
[341026063,1730281844098,-500.0,0.00034896,5]
[341026064,1730281844108,-500.0,0.00034896,5]
[341026065,1730281844117,-500.0,0.00034896,5]
[341026066,1730281844127,-500.0,0.00034896,5]
[341026067,1730281844136,-500.0,0.00034896,5]
[341026068,1730281844145,-500.0,0.00034896,5]
[341026069,1730281844155,-500.0,0.00034896,5]
[341026070,1730281844164,-500.0,0.00034896,5]
[341026071,1730281844173,-515.59,0.00034896,5]
[341026072,1730281844182,-591.52198094,0.00034896,5]
[341026073,1730281844191,-500.0,0.00034896,5]
[341026074,1730281844200,-500.0,0.00034896,5]
[341026075,1730281844210,-500.0,0.00034896,5]
[341026076,1730281844219,-500.0,0.00034896,5]
[341026077,1730281844228,-208.873974,0.00034896,7]
[341026078,1730281844238,-500.0,0.00034896,5]
[341026079,1730281844247,-500.0,0.00034896,5]
[341026080,1730281844256,-500.0,0.00034896,5]
[341026081,1730281844267,-500.0,0.00034896,5]
[341026082,1730281844277,-208.873974,0.00034896,7]
[341026083,1730281844287,-500.0,0.00034896,5]
[341026084,1730281844296,-464.45470516,0.00034896,5]
[341026085,1730281844306,-500.0,0.00034896,5]
[341026086,1730281844315,-607.81,0.00034896,5]
[341026087,1730281844324,-161.76916818,0.00034896,5]
[341026088,1730281844333,-500.0,0.00034896,5]
[341026089,1730281844342,-500.0,0.00034896,5]
[341026090,1730281844351,-500.0,0.00034896,5]
[341026091,1730281844360,-2584.21,0.00034896,5]
[341026092,1730281844370,-934.03,0.00034896,5]
[341026093,1730281844379,-500.0,0.00034896,5]
[341026094,1730281844388,-500.0,0.00034896,5]
[341026095,1730281844397,-2027.81,0.00034896,5]
[341026096,1730281844406,-500.0,0.00034896,5]
[341026097,1730281844415,-406.450682,0.00034896,7]
[341026098,1730281844424,-406.450682,0.00034896,7]
[341026099,1730281844433,-406.450682,0.00034896,7]
[341026100,1730281844442,-500.0,0.00034896,5]
[341026101,1730281844452,-514.24261293,0.00034896,5]
[341026102,1730281844461,-406.450682,0.00034896,7]
[341026103,1730281844471,-500.0,0.00034896,5]
[341026104,1730281844480,-406.450682,0.00034896,7]
[341026105,1730281844490,-500.0,0.00034896,5]
[341026106,1730281844499,-406.450682,0.00034896,7]
[341026107,1730281844509,-500.0,0.00034896,5]
[341026108,1730281844519,-662.98,0.00034896,5]
[341026109,1730281844528,-500.0,0.00034896,5]
[341026110,1730281844538,-629.46,0.00034896,5]
[341026111,1730281844548,-500.0,0.00034896,5]
[341026112,1730281844557,-1646.03,0.00034896,5]
[341026113,1730281844567,-500.0,0.00034896,5]
[341026114,1730281844576,-2570.39,0.00034896,5]
[341026115,1730281844585,-500.0,0.00034896,5]
[341026116,1730281844595,-500.0,0.00034896,5]
[341026117,1730281844604,-500.0,0.00034896,5]
[341026118,1730281844614,-500.0,0.00034896,5]
[341026119,1730281844628,-279.78343894,0.00034896,5]
[341026120,1730281844638,-500.0,0.00034896,5]
[341026121,1730281844647,-602.03077673,0.00034896,5]
[341026122,1730281844656,-1921.76,0.00034896,5]
[341026123,1730281844666,-410.00523707,0.00034896,5]
[341026124,1730281844675,-581.85,0.00034896,5]
[341026125,1730281844684,-619.68,0.00034896,5]
[341026126,1730281844693,-500.0,0.00034896,5]
[341026127,1730281844704,-1280.79,0.00034896,5]
[341026128,1730281844714,-500.0,0.00034896,5]
[341026129,1730281844723,-500.0,0.00034896,5]
[341026130,1730281844733,-1104.86,0.00034896,5]
[341026131,1730281844743,-694.02,0.00034896,5]
[341026132,1730281844752,-1461.98,0.00034896,5]
[341026133,1730281844762,-500.0,0.00034896,5]
[341026134,1730281844772,-500.0,0.00034896,5]
[341026135,1730281844781,-2286.57,0.00034896,5]
[341026136,1730281844791,-500.0,0.00034896,5]
[341026137,1730281844801,-151.0,0.00034896,7]
[341026138,1730281844810,-151.0,0.00034896,7]
[341026139,1730281844820,-151.0,0.00034896,7]
[341026140,1730281844829,-500.0,0.00034896,5]
[341026141,1730281844839,-151.0,0.00034896,7]
[341026142,1730281844849,-500.0,0.00034896,5]
[341026143,1730281844858,-500.0,0.00034896,5]
[341026144,1730281844867,-838.72,0.00034896,5]
[341026145,1730281844877,-645.43879143,0.00034896,5]
[341026146,1730281844887,-500.0,0.00034896,5]
[341026147,1730281844897,-500.0,0.00034896,5]
[341026148,1730281844906,-500.0,0.00034896,5]
[341026149,1730281844916,-183.90879122,0.00034896,5]
[341026150,1730281844926,-845.96,0.00034896,5]
[341026151,1730281844936,-500.0,0.00034896,5]
[341026152,1730281844946,-500.0,0.00034896,5]
[341026153,1730281844956,-4410.01,0.00034896,5]
[341026154,1730281844965,-353.34245371,0.00034896,5]
[341026155,1730281845013,-207.39275826,0.00034896,5]
[341026156,1730281845024,-572.44735791,0.00034896,5]
[341026157,1730281845440,-159.93264209,0.00034896,5]
[341026158,1730281845450,-525.74,0.00034896,5]
[341026159,1730281845461,-500.0,0.00034896,5]
[341026160,1730281845471,-533.13,0.00034896,5]
[341026161,1730281845481,-500.0,0.00034896,5]
[341026162,1730281845491,-500.0,0.00034896,5]
[341026163,1730281845500,-500.0,0.00034896,5]
[341026164,1730281845510,-506.57,0.00034896,5]
[341026165,1730281845520,-1035.53,0.00034896,5]
[341026166,1730281845529,-500.0,0.00034896,5]
[341026167,1730281845542,-500.0,0.00034896,5]
[341026168,1730281845552,-558.36648563,0.00034896,5]
[341026169,1730281845563,-500.0,0.00034896,5]
[341026170,1730281845573,-1413.62,0.00034896,5]
[341026171,1730281845582,-500.0,0.00034896,5]
[341026172,1730281845592,-500.0,0.00034896,5]
[341026173,1730281845602,-514.46075346,0.00034896,5]
[341026174,1730281845612,-540.43,0.00034896,5]
[341026175,1730281845625,-7835.18,0.00034896,5]
[341026176,1730281845635,-725.33,0.00034896,5]
[341026178,1730281845645,-500.0,0.00034896,5]
[341026180,1730281845655,-902.66,0.00034896,5]
[341026182,1730281845666,-500.0,0.00034896,5]
[341026184,1730281845676,-500.0,0.00034896,5]
[341026185,1730281845687,-500.0,0.00034896,5]
[341026186,1730281845698,-527.52,0.00034896,5]
[341026187,1730281845709,-680.71,0.00034896,5]
[341026188,1730281845719,-500.0,0.00034896,5]
[341026189,1730281845729,-500.0,0.00034896,5]
[341026190,1730281845739,-573.16,0.00034896,5]
[341026191,1730281845748,-823.77,0.00034896,5]
[341026192,1730281845759,-648.02,0.00034896,5]
[341026193,1730281845769,-500.0,0.00034896,5]
[341026194,1730281845779,-1117.57,0.00034896,5]
[341026195,1730281845793,-1472.06,0.00034896,5]
[341026196,1730281845803,-500.0,0.00034896,5]
[341026197,1730281845813,-151.0,0.00034896,7]
[341026198,1730281845823,-151.0,0.00034896,7]
[341026199,1730281845834,-151.0,0.00034896,7]
[341026200,1730281845845,-151.0,0.00034896,7]
[341026201,1730281845854,-5157.21,0.00034896,5]
[341026202,1730281845864,-500.0,0.00034896,5]
[341026203,1730281845875,-500.0,0.00034896,5]
[341026204,1730281845884,-1368.46,0.00034896,5]
[341026205,1730281845894,-500.0,0.00034896,5]
[341026206,1730281845904,-500.0,0.00034896,5]
[341026207,1730281845913,-500.0,0.00034896,5]
[341026208,1730281845923,-522.58171321,0.00034896,5]
[341026209,1730281845933,-500.0,0.00034896,5]
[341026210,1730281845942,-986.09,0.00034896,5]
[341026211,1730281845951,-740.95,0.00034896,5]
[341026212,1730281845961,-500.0,0.00034896,5]
[341026213,1730281845972,-237.729971,0.00034896,7]
[341026214,1730281845982,-500.0,0.00034896,5]
[341026215,1730281845993,-392.10770985,0.00034896,5]
[341026216,1730281846003,-707.35,0.00034896,5]
[341026217,1730281846013,-500.0,0.00034896,5]
[341026218,1730281846023,-905.48,0.00034896,5]
[341026219,1730281846035,-500.0,0.00034896,5]
[341026220,1730281846045,-570.15,0.00034896,5]
[341026221,1730281846055,-500.0,0.00034896,5]
[341026222,1730281846064,-524.86542822,0.00034896,5]
[341026223,1730281846073,-500.0,0.00034897,5]
[341026224,1730281846083,-500.0,0.00034897,5]
[341026225,1730281846093,-500.0,0.00034897,5]
[341026226,1730281846103,-500.0,0.00034897,5]
[341026227,1730281846113,-500.0,0.00034897,5]
[341026228,1730281846123,-500.0,0.00034897,5]
[341026229,1730281846132,-500.0,0.00034897,5]
[341026230,1730281846142,-500.0,0.00034897,5]
[341026231,1730281846152,-500.0,0.00034897,5]
[341026232,1730281846161,-500.0,0.00034897,5]
[341026233,1730281846171,-500.0,0.00034897,5]
[341026234,1730281846182,-500.0,0.00034897,5]
[341026235,1730281846191,-500.0,0.00034897,5]
[341026236,1730281846201,-500.0,0.00034897,5]
[341026237,1730281846211,-500.0,0.00034897,5]
[341026238,1730281846220,-500.0,0.00034897,5]
[341026239,1730281846229,-500.0,0.00034897,5]
[341026240,1730281846239,-500.0,0.00034897,5]
[341026241,1730281846250,-500.0,0.00034897,5]
[341026242,1730281846260,-500.0,0.00034897,5]
[341026243,1730281846269,-500.0,0.00034897,5]
[341026244,1730281846278,-500.0,0.00034897,5]
[341026245,1730281846289,-500.0,0.00034897,5]
[341026246,1730281846298,-500.0,0.00034897,5]
[341026247,1730281846307,-500.0,0.00034897,5]
[341026248,1730281846318,-500.0,0.00034897,5]
[341026249,1730281846328,-500.0,0.00034897,5]
[341026250,1730281846337,-500.0,0.00034897,5]
[341026251,1730281846347,-500.0,0.00034897,5]
[341026252,1730281846357,-500.0,0.00034897,5]
[341026253,1730281846366,-500.0,0.00034897,5]
[341026254,1730281846376,-500.0,0.00034897,5]
[341026255,1730281846385,-500.0,0.00034897,5]
[341026256,1730281846395,-333.23601791,0.00034897,5]
[341026257,1730281846404,-500.0,0.00034897,5]
[341026258,1730281846414,-558.09995156,0.00034897,5]
[341026259,1730281846423,-529.44902527,0.00034897,5]
[341026260,1730281846433,-500.0,0.00034897,5]
[341026261,1730281846442,-500.0,0.00034897,5]
[341026262,1730281846452,-500.0,0.00034897,5]
[341026263,1730281846462,-542.95069001,0.00034897,5]
[341026264,1730281846472,-500.0,0.00034897,5]
[341026265,1730281846481,-267.46477373,0.00034897,5]
[341026266,1730281846491,-500.0,0.00034897,5]
[341026267,1730281846500,-500.0,0.00034897,5]
[341026268,1730281846509,-188.14592011,0.00034897,5]
[341026269,1730281846519,-539.79425842,0.00034897,5]
[341026270,1730281846528,-500.0,0.00034897,5]
[341026271,1730281846538,-500.0,0.00034897,5]
[341026272,1730281846548,-500.0,0.00034897,5]
[341026273,1730281846557,-243.22767279,0.00034897,5]
[341026274,1730281846567,-500.0,0.00034897,5]
[341026275,1730281846576,-500.0,0.00034897,5]
[341026276,1730281846585,-213.82083636,0.00034897,5]
[341026277,1730281846595,-500.0,0.00034897,5]
[341026278,1730281846604,-500.0,0.00034897,5]
[341026279,1730281846615,-497.61467882,0.00034897,5]
[341026280,1730281846627,-538.77265087,0.00034897,5]
[341026281,1730281846637,-500.0,0.00034897,5]
[341026282,1730281846647,-714.21,0.00034897,5]
[341026283,1730281846658,-500.0,0.00034897,5]
[341026284,1730281846668,-500.0,0.00034897,5]
[341026285,1730281846677,-500.0,0.00034897,5]
[341026286,1730281846688,-500.0,0.00034897,5]
[341026287,1730281846700,-500.0,0.00034897,5]
[341026288,1730281846710,-500.0,0.00034897,5]
[341026289,1730281846720,-500.0,0.00034897,5]
[341026290,1730281846730,-434.30770845,0.00034897,5]
[341026291,1730281846740,-843.97,0.00034897,5]
[341026292,1730281846749,-500.0,0.00034897,5]
[341026293,1730281846758,-500.0,0.00034897,5]
[341026294,1730281846768,-500.0,0.00034897,5]
[341026295,1730281846777,-500.0,0.00034897,5]
[341026296,1730281846788,-500.0,0.00034897,5]
[341026297,1730281846800,-607.68632622,0.00034897,5]
[341026298,1730281846810,-500.0,0.00034897,5]
[341026299,1730281846820,-500.0,0.00034897,5]
[341026300,1730281846829,-500.0,0.00034897,5]
[341026301,1730281846840,-500.0,0.00034897,5]
[341026302,1730281846849,-500.0,0.00034897,5]
[341026303,1730281846858,-500.0,0.00034897,5]
[341026304,1730281846868,-500.0,0.00034897,5]
[341026305,1730281846877,-500.0,0.00034897,5]
[341026306,1730281846887,-500.0,0.00034897,5]
[341026307,1730281846992,-500.0,0.00034897,5]
[341026308,1730281847002,-500.0,0.00034897,5]
[341026309,1730281847012,-500.0,0.00034897,5]
[341026310,1730281847021,-500.0,0.00034897,5]
[341026311,1730281847030,-500.0,0.00034897,5]
[341026312,1730281847041,-500.0,0.00034897,5]
[341026313,1730281847051,-500.0,0.00034897,5]
[341026314,1730281847060,-1000.0,0.00034897,5]
[341026315,1730281847070,-500.0,0.00034897,5]
[341026316,1730281847079,-500.0,0.00034897,5]
[341026317,1730281847089,-500.0,0.00034897,5]
[341026318,1730281847099,-500.0,0.00034897,5]
[341026319,1730281847109,-500.0,0.00034897,5]
[341026320,1730281847118,-500.0,0.00034897,5]
[341026321,1730281847127,-500.0,0.00034897,5]
[341026322,1730281847138,-500.0,0.00034897,5]
[341026323,1730281847148,-500.0,0.00034897,5]
[341026324,1730281847158,-500.0,0.00034897,5]
[341026325,1730281847167,-166.42671788,0.00034897,5]
[341026326,1730281847177,-500.0,0.00034897,5]
[341026327,1730281847186,-500.0,0.00034897,5]
[341026328,1730281847196,-500.0,0.00034897,5]
[341026329,1730281847205,-500.0,0.00034897,5]
[341026330,1730281847215,-500.0,0.00034897,5]
[341026331,1730281847224,-500.0,0.00034897,5]
[341026332,1730281847234,-442.984832,0.00034897,5]
[341026333,1730281847243,-500.0,0.00034897,5]
[341026334,1730281847252,-500.0,0.00034897,5]
[341026335,1730281847262,-500.0,0.00034897,5]
[341026336,1730281847271,-500.0,0.00034897,5]
[341026337,1730281847281,-517.48257476,0.00034897,5]
[341026338,1730281847294,-1000.0,0.00034897,10]
[341026339,1730281847304,-514.91553323,0.00034897,5]
[341026340,1730281847314,-500.0,0.00034897,5]
[341026341,1730281847323,-530.41879063,0.00034897,5]
[341026342,1730281847333,-500.0,0.00034897,5]
[341026343,1730281847343,-500.0,0.00034897,5]
[341026344,1730281847352,-524.19795752,0.00034897,5]
[341026345,1730281847361,-500.0,0.00034897,5]
[341026346,1730281847371,-500.0,0.00034897,5]
[341026347,1730281847381,-500.0,0.00034897,5]
[341026348,1730281847391,-500.0,0.00034897,5]
[341026349,1730281847400,-540.47802384,0.00034897,5]
[341026350,1730281847410,-500.0,0.00034897,5]
[341026351,1730281847419,-500.0,0.00034897,5]
[341026352,1730281847428,-500.0,0.00034897,5]
[341026353,1730281847439,-500.0,0.00034897,5]
[341026354,1730281847448,-500.0,0.00034897,5]
[341026355,1730281847458,-500.0,0.00034897,5]
[341026356,1730281847468,-500.0,0.00034897,5]
[341026357,1730281847478,-500.0,0.00034897,5]
[341026358,1730281847487,-500.0,0.00034897,5]
[341026359,1730281847497,-500.0,0.00034897,5]
[341026360,1730281847506,-500.0,0.00034897,5]
[341026361,1730281847515,-500.0,0.00034897,5]
[341026362,1730281847525,-500.0,0.00034897,5]
[341026363,1730281847536,-500.0,0.00034897,5]
[341026364,1730281847546,-500.0,0.00034897,5]
[341026365,1730281847555,-539.16146533,0.00034897,5]
[341026366,1730281847565,-1406.3,0.00034897,5]
[341026367,1730281847574,-500.0,0.00034897,5]
[341026368,1730281847583,-500.0,0.00034897,5]
[341026369,1730281847593,-500.0,0.00034897,5]
[341026370,1730281847602,-500.0,0.00034897,5]
[341026371,1730281847612,-500.0,0.00034897,5]
[341026372,1730281847626,-500.0003,0.00034897,5]
[341026373,1730281847636,-500.0,0.00034897,5]
[341026374,1730281847645,-500.0,0.00034897,5]
[341026375,1730281847654,-500.0,0.00034897,5]
[341026376,1730281847665,-500.0,0.00034897,5]
[341026377,1730281847677,-500.0,0.00034897,5]
[341026378,1730281847695,-845.75,0.00034897,5]
[341026379,1730281847711,-547.51373297,0.00034897,5]
[341026380,1730281847729,-500.0,0.00034897,5]
[341026381,1730281847747,-151.0,0.00034897,7]
[341026382,1730281847763,-632.2,0.00034897,5]
[341026383,1730281847779,-152.443658,0.00034897,7]
[341026384,1730281847797,-500.0,0.00034897,5]
[341026385,1730281847811,-500.0,0.00034897,5]
[341026386,1730281847827,-903.51,0.00034897,5]
[341026387,1730281847844,-151.0,0.00034897,7]
[341026388,1730281847864,-157.281632,0.00034897,7]
[341026389,1730281847877,-500.0,0.00034897,5]
[341026390,1730281847894,-500.0,0.00034897,5]
[341026391,1730281847911,-500.0,0.00034897,5]
[341026392,1730281847927,-500.0,0.00034897,5]
[341026393,1730281847941,-500.0,0.00034897,5]
[341026394,1730281847954,-232.984664,0.00034897,7]
[341026395,1730281847969,-500.0,0.00034897,5]
[341026396,1730281847983,-500.0,0.00034897,5]
[341026397,1730281847999,-506.13397405,0.00034897,5]
[341026398,1730281848014,-503.97,0.00034897,5]
[341026399,1730281848028,-500.0,0.00034897,5]
[341026400,1730281848044,-500.0,0.00034897,5]
[341026401,1730281848058,-500.0,0.00034897,5]
[341026402,1730281848073,-500.0,0.00034897,5]
[341026403,1730281848088,-694.18,0.00034897,5]
[341026404,1730281848103,-500.0,0.00034897,5]
[341026405,1730281848119,-174.62052,0.00034897,7]
[341026406,1730281848133,-500.0,0.00034897,5]
[341026407,1730281848148,-500.0,0.00034897,5]